[Event "Vegagatan U1800-B"]
[Site "Goteborgs Schackcentrum, Vegatan 20, Gothenburg, Sweden"]
[Date "2025.05.03"]
[Round "2.2"]
[White "Olivius, Sten"]
[Black "Kadyr, Mustafa"]
[Result "1-0"]
[TimeControl "30 minutes + 30 seconds per move from move one"]
[WhiteFideId "1788728"]
[BlackFideId "1772147"]
[WhiteElo "1678"]
[BlackElo "1686"]

1. e4 {[%clk 00:30:57]} {[%emt 00:00:02]} e5 {[%clk 00:30:49]} {[%emt
00:00:12]} 2. Nf3 {[%clk 00:31:19]} {[%emt 00:00:08]} Nc6 {[%clk 00:31:11]}
{[%emt 00:00:08]} 3. Nc3 {[%clk 00:31:37]} {[%emt 00:00:11]} Nf6 {[%clk
00:31:32]} {[%emt 00:00:09]} 4. Bb5 {[%clk 00:31:59]} {[%emt 00:00:09]} d6
{[%clk 00:31:35]} {[%emt 00:00:27]} 5. d4 {[%clk 00:32:17]} {[%emt 00:00:11]}
exd4 {[%clk 00:31:55]} {[%emt 00:00:11]} 6. Nxd4 {[%clk 00:32:36]} {[%emt
00:00:10]} Bd7 {[%clk 00:32:21]} {[%emt 00:00:04]} 7. Nxc6 {[%clk 00:32:32]}
{[%emt 00:00:34]} Bxc6 {[%clk 00:32:49]} {[%emt 00:00:02]} 8. Bxc6+ {[%clk
00:32:35]} {[%emt 00:00:26]} bxc6 {[%clk 00:33:19]} {[%emt 00:00:02]} 9. O-O
{[%clk 00:32:43]} {[%emt 00:00:22]} Be7 {[%clk 00:33:45]} {[%emt 00:00:03]} 10.
Qf3 {[%clk 00:32:47]} {[%emt 00:00:25]} O-O {[%clk 00:32:14]} {[%emt 00:02:02]}
11. Bg5 {[%clk 00:32:55]} {[%emt 00:00:21]} h6 {[%clk 00:32:32]} {[%emt
00:00:13]} 12. Bh4 {[%clk 00:33:02]} {[%emt 00:00:22]} Qd7 {[%clk 00:32:14]}
{[%emt 00:00:50]} 13. Rad1 {[%clk 00:33:02]} {[%emt 00:00:29]} Rfe8 {[%clk
00:30:45]} {[%emt 00:02:00]} 14. Rfe1 {[%clk 00:33:07]} {[%emt 00:00:24]} Rad8
{[%clk 00:30:05]} {[%emt 00:01:10]} 15. e5 {[%clk 00:32:59]} {[%emt 00:00:38]}
Nh7 {[%clk 00:30:19]} {[%emt 00:00:16]} 16. Bxe7 {[%clk 00:32:36]} {[%emt
00:00:53]} Rxe7 {[%clk 00:30:25]} {[%emt 00:00:25]} 17. exd6 {[%clk 00:32:40]}
{[%emt 00:00:25]} Rxe1+ {[%clk 00:29:54]} {[%emt 00:01:02]} 18. Rxe1 {[%clk
00:33:03]} {[%emt 00:00:06]} cxd6 {[%clk 00:30:08]} {[%emt 00:00:17]} 19. Ne4
{[%clk 00:32:31]} {[%emt 00:01:01]} d5 {[%clk 00:30:20]} {[%emt 00:00:19]} 20.
Nc5 {[%clk 00:32:43]} {[%emt 00:00:17]} Qc7 {[%clk 00:29:15]} {[%emt 00:01:34]}
21. h4 {[%clk 00:31:40]} {[%emt 00:01:34]} Qb6 {[%clk 00:28:45]} {[%emt
00:00:59]} 22. Nb3 {[%clk 00:31:40]} {[%emt 00:00:31]} Nf6 {[%clk 00:28:51]}
{[%emt 00:00:24]} 23. Re7 {[%clk 00:31:28]} {[%emt 00:00:42]} Re8 {[%clk
00:27:10]} {[%emt 00:02:07]} 24. Rxe8+ {[%clk 00:31:36]} {[%emt 00:00:26]} Nxe8
{[%clk 00:27:29]} {[%emt 00:00:11]} 25. Qe3 {[%clk 00:31:52]} {[%emt 00:00:14]}
Qxe3 {[%clk 00:27:38]} {[%emt 00:00:21]} 26. fxe3 {[%clk 00:32:21]} {[%emt
00:00:02]} Nd6 {[%clk 00:27:58]} {[%emt 00:00:09]} 27. Nd4 {[%clk 00:32:34]}
{[%emt 00:00:17]} c5 {[%clk 00:27:15]} {[%emt 00:01:14]} 28. Nc6 {[%clk
00:32:55]} {[%emt 00:00:09]} Kf8 {[%clk 00:26:00]} {[%emt 00:01:44]} 29. Nxa7
{[%clk 00:33:01]} {[%emt 00:00:24]} Nc4 {[%clk 00:25:54]} {[%emt 00:00:37]} 30.
Kf2 {[%clk 00:33:08]} {[%emt 00:00:23]} Nxb2 {[%clk 00:26:06]} {[%emt
00:00:18]} 31. Nb5 {[%clk 00:33:08]} {[%emt 00:00:29]} Ke7 {[%clk 00:26:05]}
{[%emt 00:00:31]} 32. Ke2 {[%clk 00:33:17]} {[%emt 00:00:22]} Nc4 {[%clk
00:25:48]} {[%emt 00:00:46]} 33. Kd3 {[%clk 00:33:26]} {[%emt 00:00:22]} Nb6
{[%clk 00:24:20]} {[%emt 00:01:57]} 34. e4 {[%clk 00:33:16]} {[%emt 00:00:40]}
d4 {[%clk 00:21:12]} {[%emt 00:03:28]} 35. Nc7 {[%clk 00:33:17]} {[%emt
00:00:39]} Kd7 {[%clk 00:20:43]} {[%emt 00:00:56]} 36. Nd5 {[%clk 00:33:15]}
{[%emt 00:00:35]} Na4 {[%clk 00:19:46]} {[%emt 00:01:27]} 37. Kc4 {[%clk
00:33:23]} {[%emt 00:00:21]} Kc6 {[%clk 00:18:16]} {[%emt 00:01:56]} 38. Ne7+
{[%clk 00:33:27]} {[%emt 00:00:31]} Kb6 {[%clk 00:18:27]} {[%emt 00:00:16]} 39.
Nf5 {[%clk 00:33:20]} {[%emt 00:00:38]} g6 {[%clk 00:18:29]} {[%emt 00:00:29]}
40. Nxh6 {[%clk 00:33:33]} {[%emt 00:00:18]} Nc3 {[%clk 00:18:52]} {[%emt
00:00:05]} 41. Nxf7 {[%clk 00:33:41]} {[%emt 00:00:24]} Nxe4 {[%clk 00:18:48]}
{[%emt 00:00:34]} 42. Ne5 {[%clk 00:33:13]} {[%emt 00:00:58]} g5 {[%clk
00:17:04]} {[%emt 00:02:14]} 43. hxg5 {[%clk 00:33:27]} {[%emt 00:00:17]} Nxg5
{[%clk 00:17:31]} {[%emt 00:00:02]} 44. Nd7+ {[%clk 00:33:17]} {[%emt
00:00:39]} 1-0

[Event "Vegagatan U1800-B"]
[Site "Goteborgs Schackcentrum, Vegatan 20, Gothenburg, Sweden"]
[Date "2025.05.03"]
[Round "2.3"]
[White "Zein, Khalil"]
[Black "Hemmerling, Martin"]
[Result "0-1"]
[TimeControl "30 minutes + 30 seconds per move from move one"]
[WhiteFideId "1776118"]
[BlackFideId "1795724"]
[WhiteElo "1656"]
[BlackElo "1788"]

1. e4 {[%clk 00:29:20]} {[%emt 00:01:39]} c6 {[%clk 00:30:54]} {[%emt
00:00:08]} 2. d4 {[%clk 00:29:48]} {[%emt 00:00:02]} d5 {[%clk 00:31:20]}
{[%emt 00:00:03]} 3. f3 {[%clk 00:30:16]} {[%emt 00:00:02]} dxe4 {[%clk
00:31:35]} {[%emt 00:00:16]} 4. fxe4 {[%clk 00:29:48]} {[%emt 00:00:57]} e5
{[%clk 00:31:58]} {[%emt 00:00:08]} 5. Nf3 {[%clk 00:29:42]} {[%emt 00:00:35]}
Bg4 {[%clk 00:32:03]} {[%emt 00:00:26]} 6. Bc4 {[%clk 00:29:17]} {[%emt
00:00:55]} Nd7 {[%clk 00:32:05]} {[%emt 00:00:28]} 7. O-O {[%clk 00:29:18]}
{[%emt 00:00:29]} Ngf6 {[%clk 00:32:25]} {[%emt 00:00:10]} 8. Bg5 {[%clk
00:29:24]} {[%emt 00:00:23]} Qb6 {[%clk 00:31:51]} {[%emt 00:01:04]} 9. b3
{[%clk 00:28:36]} {[%emt 00:01:18]} Bxf3 {[%clk 00:29:51]} {[%emt 00:02:31]} 10.
Rxf3 {[%clk 00:28:29]} {[%emt 00:00:37]} Qxd4+ {[%clk 00:30:00]} {[%emt
00:00:21]} 11. Qxd4 {[%clk 00:28:22]} {[%emt 00:00:37]} exd4 {[%clk 00:30:23]}
{[%emt 00:00:06]} 12. Bxf6 {[%clk 00:28:41]} {[%emt 00:00:12]} gxf6 {[%clk
00:28:15]} {[%emt 00:02:37]} 13. e5 {[%clk 00:27:27]} {[%emt 00:01:44]} Nxe5
{[%clk 00:27:58]} {[%emt 00:00:48]} 14. Rxf6 {[%clk 00:27:52]} {[%emt
00:00:05]} Nxc4 {[%clk 00:27:57]} {[%emt 00:00:30]} 15. bxc4 {[%clk 00:27:46]}
{[%emt 00:00:36]} Bg7 {[%clk 00:23:51]} {[%emt 00:04:36]} 16. Rf3 {[%clk
00:27:56]} {[%emt 00:00:21]} O-O-O {[%clk 00:23:34]} {[%emt 00:00:46]} 17. Nd2
{[%clk 00:27:28]} {[%emt 00:00:58]} d3 {[%clk 00:21:44]} {[%emt 00:02:20]} 18.
Rc1 {[%clk 00:26:22]} {[%emt 00:01:36]} Bh6 {[%clk 00:21:41]} {[%emt 00:00:34]}
19. cxd3 {[%clk 00:24:23]} {[%emt 00:02:29]} Bxd2 {[%clk 00:21:48]} {[%emt
00:00:22]} 20. Rd1 {[%clk 00:24:49]} {[%emt 00:00:04]} Bc3 {[%clk 00:21:01]}
{[%emt 00:01:16]} 21. Rxf7 {[%clk 00:24:29]} {[%emt 00:00:51]} Bd4+ {[%clk
00:21:19]} {[%emt 00:00:12]} 22. Kh1 {[%clk 00:24:54]} {[%emt 00:00:06]} Rdf8
{[%clk 00:18:28]} {[%emt 00:03:20]} 23. Re7 {[%clk 00:24:39]} {[%emt 00:00:45]}
Rf2 {[%clk 00:16:30]} {[%emt 00:02:28]} 24. Re4 {[%clk 00:24:39]} {[%emt
00:00:31]} c5 {[%clk 00:16:43]} {[%emt 00:00:17]} 25. g4 {[%clk 00:23:39]}
{[%emt 00:01:31]} h5 {[%clk 00:14:20]} {[%emt 00:02:52]} 26. h4 {[%clk
00:22:58]} {[%emt 00:01:11]} hxg4 {[%clk 00:14:03]} {[%emt 00:00:46]} 27. Rxg4
{[%clk 00:23:16]} {[%emt 00:00:12]} Bf6 {[%clk 00:10:59]} {[%emt 00:03:34]} 28.
Kg1 {[%clk 00:22:15]} {[%emt 00:01:32]} Rxa2 {[%clk 00:11:04]} {[%emt
00:00:25]} 29. Rf1 {[%clk 00:22:42]} {[%emt 00:00:02]} Ra1 {[%clk 00:10:57]}
{[%emt 00:00:36]} 30. Rxa1 {[%clk 00:22:29]} {[%emt 00:00:44]} Bxa1 {[%clk
00:11:06]} {[%emt 00:00:22]} 31. Rg5 {[%clk 00:22:57]} {[%emt 00:00:02]} Bd4+
{[%clk 00:11:19]} {[%emt 00:00:17]} 0-1

[Event "Vegagatan U1800-B"]
[Site "Goteborgs Schackcentrum, Vegatan 20, Gothenburg, Sweden"]
[Date "2025.05.03"]
[Round "2.4"]
[White "Vairav, Vihaan"]
[Black "Bjureblad, Martin"]
[Result "0-1"]
[TimeControl "30 minutes + 30 seconds per move from move one"]
[WhiteFideId "1783971"]
[BlackFideId "1717928"]
[WhiteElo "1666"]
[BlackElo "1645"]

1. d4 {[%clk 00:30:57]} {[%emt 00:00:02]} d5 {[%clk 00:28:19]} {[%emt
00:02:41]} 2. c4 {[%clk 00:31:19]} {[%emt 00:00:08]} e6 {[%clk 00:28:06]}
{[%emt 00:00:44]} 3. Nc3 {[%clk 00:31:41]} {[%emt 00:00:07]} c5 {[%clk
00:28:18]} {[%emt 00:00:19]} 4. e3 {[%clk 00:30:12]} {[%emt 00:01:59]} Nc6
{[%clk 00:28:37]} {[%emt 00:00:11]} 5. Nf3 {[%clk 00:30:26]} {[%emt 00:00:15]}
a6 {[%clk 00:28:44]} {[%emt 00:00:23]} 6. cxd5 {[%clk 00:30:08]} {[%emt
00:00:48]} exd5 {[%clk 00:28:46]} {[%emt 00:00:28]} 7. Be2 {[%clk 00:30:19]}
{[%emt 00:00:19]} Nf6 {[%clk 00:29:07]} {[%emt 00:00:09]} 8. O-O {[%clk
00:29:47]} {[%emt 00:01:01]} h6 {[%clk 00:29:25]} {[%emt 00:00:13]} 9. dxc5
{[%clk 00:29:30]} {[%emt 00:00:47]} Bxc5 {[%clk 00:29:12]} {[%emt 00:00:43]} 10.
Bd2 {[%clk 00:29:12]} {[%emt 00:00:47]} O-O {[%clk 00:29:08]} {[%emt 00:00:35]}
11. Re1 {[%clk 00:28:11]} {[%emt 00:01:30]} Bf5 {[%clk 00:29:12]} {[%emt
00:00:25]} 12. Nh4 {[%clk 00:27:09]} {[%emt 00:01:30]} Bh7 {[%clk 00:28:56]}
{[%emt 00:00:50]} 13. Bf3 {[%clk 00:26:26]} {[%emt 00:01:09]} Nb4 {[%clk
00:28:46]} {[%emt 00:00:44]} 14. Rc1 {[%clk 00:24:22]} {[%emt 00:02:33]} Nd3
{[%emt 00:01:36]} 15. Be2 {[%clk 00:24:07]} Nxe1 {[%clk 00:27:31]} {[%emt
00:01:25]} 16. Qxe1 {[%clk 00:24:22]} {[%emt 00:00:15]} Bb4 {[%clk 00:27:29]}
{[%emt 00:00:32]} 17. a3 {[%clk 00:24:12]} {[%emt 00:00:40]} Bxc3 {[%clk
00:27:44]} {[%emt 00:00:15]} 18. Rxc3 {[%clk 00:24:15]} {[%emt 00:00:27]} Ne4
{[%clk 00:24:45]} {[%emt 00:03:29]} 19. Rc1 {[%clk 00:22:45]} {[%emt 00:01:58]}
Qxh4 {[%clk 00:25:02]} {[%emt 00:00:15]} 20. f3 {[%clk 00:22:12]} {[%emt
00:01:02]} Qxe1+ {[%clk 00:24:16]} {[%emt 00:01:16]} 21. Bxe1 {[%clk 00:22:22]}
{[%emt 00:00:18]} Nf6 {[%clk 00:23:35]} {[%emt 00:01:14]} 22. Bb4 {[%clk
00:22:23]} {[%emt 00:00:30]} Rfc8 {[%clk 00:23:47]} {[%emt 00:00:17]} 23. Rxc8+
{[%clk 00:21:50]} {[%emt 00:01:03]} Rxc8 {[%clk 00:24:01]} {[%emt 00:00:16]} 24.
Kf2 {[%clk 00:21:59]} {[%emt 00:00:21]} Rc2 {[%clk 00:23:59]} {[%emt 00:00:32]}
25. Ke1 {[%clk 00:22:02]} {[%emt 00:00:27]} Rxb2 {[%clk 00:24:03]} {[%emt
00:00:26]} 26. Bc3 {[%clk 00:22:07]} {[%emt 00:00:23]} Rb1+ {[%clk 00:24:14]}
{[%emt 00:00:20]} 27. Kf2 {[%clk 00:22:24]} {[%emt 00:00:12]} Nd7 {[%clk
00:23:16]} {[%emt 00:01:30]} 28. Kg3 {[%clk 00:22:21]} {[%emt 00:00:32]} Rb3
{[%clk 00:22:48]} {[%emt 00:00:59]} 29. Bd4 {[%clk 00:20:04]} {[%emt 00:02:48]}
Rxa3 {[%clk 00:22:43]} {[%emt 00:00:34]} 0-1

[Event "Vegagatan U1800-B"]
[Site "Goteborgs Schackcentrum, Vegatan 20, Gothenburg, Sweden"]
[Date "2025.05.03"]
[Round "3.1"]
[White "Kadyr, Mustafa"]
[Black "Hassinge, Ove"]
[Result "1-0"]
[TimeControl "30 minutes + 30 seconds per move from move one"]
[WhiteFideId "1772147"]
[BlackFideId "1774530"]
[WhiteElo "1686"]
[BlackElo "1652"]

1. e4 {[%clk 00:30:37]} {[%emt 00:00:23]} c5 {[%clk 00:30:46]} {[%emt
00:00:14]} 2. c3 {[%clk 00:31:01]} {[%emt 00:00:05]} d5 {[%clk 00:31:10]}
{[%emt 00:00:06]} 3. exd5 {[%clk 00:31:30]} {[%emt 00:00:02]} Qxd5 {[%clk
00:31:35]} {[%emt 00:00:05]} 4. d4 {[%emt 00:00:10]} cxd4 {[%clk 00:31:52]}
{[%emt 00:00:11]} 5. cxd4 {[%clk 00:32:16]} {[%emt 00:00:05]} e5 {[%clk
00:31:53]} {[%emt 00:00:30]} 6. Nf3 {[%clk 00:32:00]} {[%emt 00:00:47]} exd4
{[%clk 00:32:12]} {[%emt 00:00:10]} 7. Qxd4 {[%clk 00:32:04]} {[%emt 00:00:26]}
Qe6+ {[%clk 00:31:45]} {[%emt 00:00:57]} 8. Be3 {[%clk 00:31:23]} {[%emt
00:01:11]} Nc6 {[%clk 00:31:34]} {[%emt 00:00:41]} 9. Qd1 {[%clk 00:31:38]}
{[%emt 00:00:14]} Bb4+ {[%clk 00:30:26]} {[%emt 00:01:38]} 10. Nc3 {[%clk
00:31:45]} {[%emt 00:00:23]} Bxc3+ {[%clk 00:30:07]} {[%emt 00:00:50]} 11. bxc3
{[%clk 00:32:06]} {[%emt 00:00:09]} Nf6 {[%clk 00:30:18]} {[%emt 00:00:19]} 12.
Be2 {[%clk 00:32:01]} {[%emt 00:00:33]} O-O {[%clk 00:30:12]} {[%emt 00:00:38]}
13. O-O {[%clk 00:31:45]} {[%emt 00:00:44]} Rd8 {[%clk 00:26:59]} {[%emt
00:03:44]} 14. Qb3 {[%clk 00:31:57]} {[%emt 00:00:15]} Na5 {[%clk 00:25:49]}
{[%emt 00:01:43]} 15. Qb2 {[%clk 00:29:22]} {[%emt 00:03:04]} Nc4 {[%clk
00:25:22]} {[%emt 00:00:59]} 16. Bxc4 {[%clk 00:29:41]} {[%emt 00:00:11]} Qxc4
{[%clk 00:25:46]} {[%emt 00:00:06]} 17. h3 {[%clk 00:28:56]} {[%emt 00:01:15]}
b6 {[%clk 00:25:02]} {[%emt 00:01:14]} 18. Bg5 {[%clk 00:27:12]} {[%emt
00:02:12]} Qc6 {[%clk 00:19:24]} {[%emt 00:06:09]} 19. Nd4 {[%clk 00:24:50]}
{[%emt 00:02:52]} Qd6 {[%clk 00:18:22]} {[%emt 00:01:33]} 20. Rad1 {[%clk
00:25:06]} {[%emt 00:00:14]} Bb7 {[%clk 00:18:16]} {[%emt 00:00:36]} 21. Nb5
{[%clk 00:23:02]} {[%emt 00:02:34]} Qc6 {[%clk 00:18:13]} {[%emt 00:00:31]} 22.
f4 {[%clk 00:20:55]} {[%emt 00:02:38]} h6 {[%clk 00:15:20]} {[%emt 00:03:24]}
23. Bxf6 {[%clk 00:20:59]} {[%emt 00:00:26]} Qxf6 {[%clk 00:15:38]} {[%emt
00:00:12]} 24. Rxd8+ {[%clk 00:21:10]} {[%emt 00:00:19]} Qxd8 {[%clk 00:15:04]}
{[%emt 00:01:04]} 25. Nd4 {[%clk 00:19:47]} {[%emt 00:01:52]} Qd5 {[%clk
00:13:57]} {[%emt 00:01:37]} 26. Re1 {[%clk 00:18:24]} {[%emt 00:01:47]} Qd6
{[%clk 00:12:49]} {[%emt 00:01:44]} 27. Qd2 {[%clk 00:18:07]} {[%emt 00:00:47]}
Rd8 {[%clk 00:10:55]} {[%emt 00:02:25]} 28. Qf2 {[%clk 00:15:37]} {[%emt
00:02:58]} Qc5 {[%clk 00:09:09]} {[%emt 00:02:18]} 29. Rc1 {[%clk 00:15:35]}
{[%emt 00:00:30]} Be4 {[%clk 00:07:39]} {[%emt 00:02:01]} 30. Nb3 {[%clk
00:14:58]} {[%emt 00:01:08]} Qxf2+ {[%clk 00:07:21]} {[%emt 00:00:48]} 31. Kxf2
{[%clk 00:15:18]} {[%emt 00:00:10]} f5 {[%clk 00:06:34]} {[%emt 00:01:17]} 32.
Nd4 {[%clk 00:15:05]} {[%emt 00:00:43]} Kf7 {[%clk 00:06:15]} {[%emt 00:00:47]}
33. g4 {[%clk 00:14:19]} {[%emt 00:01:17]} Kf6 {[%clk 00:05:41]} {[%emt
00:01:05]} 34. g5+ {[%clk 00:14:01]} {[%emt 00:00:48]} hxg5 {[%clk 00:05:08]}
{[%emt 00:01:03]} 35. fxg5+ {[%clk 00:14:25]} {[%emt 00:00:06]} Kf7 {[%clk
00:04:38]} {[%emt 00:00:59]} 36. h4 {[%clk 00:14:48]} {[%emt 00:00:08]} g6
{[%clk 00:04:13]} {[%emt 00:00:55]} 37. Kg3 {[%clk 00:14:41]} {[%emt 00:00:35]}
Rd7 {[%clk 00:01:36]} {[%emt 00:03:08]} 38. Kf4 {[%clk 00:14:50]} {[%emt
00:00:21]} a6 {[%clk 00:01:36]} {[%emt 00:00:31]} 39. h5 {[%clk 00:14:09]}
{[%emt 00:01:11]} gxh5 {[%clk 00:00:00]} 1-0

[Event "Vegagatan U1800-B"]
[Site "Goteborgs Schackcentrum, Vegatan 20, Gothenburg, Sweden"]
[Date "2025.05.03"]
[Round "3.2"]
[White "Hernebring, Marten"]
[Black "Zein, Khalil"]
[Result "0-1"]
[TimeControl "30 minutes + 30 seconds per move from move one"]
[WhiteFideId "1776894"]
[BlackFideId "1776118"]
[WhiteElo "1679"]
[BlackElo "1656"]

1. c4 {[%clk 00:30:57]} {[%emt 00:00:02]} g6 {[%clk 00:30:53]} {[%emt
00:00:07]} 2. g3 {[%clk 00:30:54]} {[%emt 00:00:34]} Bg7 {[%clk 00:30:53]}
{[%emt 00:00:30]} 3. Bg2 {[%clk 00:31:17]} {[%emt 00:00:07]} Nf6 {[%clk
00:30:51]} {[%emt 00:00:32]} 4. Nf3 {[%clk 00:31:09]} {[%emt 00:00:38]} d6
{[%clk 00:31:08]} {[%emt 00:00:14]} 5. Nc3 {[%clk 00:31:20]} {[%emt 00:00:18]}
e5 {[%clk 00:31:27]} {[%emt 00:00:11]} 6. d4 {[%clk 00:31:20]} {[%emt
00:00:31]} Nc6 {[%clk 00:31:37]} {[%emt 00:00:19]} 7. d5 {[%clk 00:31:23]}
{[%emt 00:00:27]} Ne7 {[%clk 00:30:30]} {[%emt 00:01:36]} 8. e4 {[%clk
00:31:28]} {[%emt 00:00:26]} O-O {[%clk 00:30:28]} {[%emt 00:00:33]} 9. h3
{[%clk 00:31:14]} {[%emt 00:00:43]} Nd7 {[%clk 00:29:55]} {[%emt 00:01:02]} 10.
Be3 {[%clk 00:30:17]} {[%emt 00:01:28]} Nb6 {[%clk 00:30:05]} {[%emt 00:00:20]}
11. Nd2 {[%clk 00:30:36]} {[%emt 00:00:11]} f5 {[%clk 00:30:21]} {[%emt
00:00:14]} 12. f3 {[%clk 00:30:33]} {[%emt 00:00:32]} f4 {[%clk 00:29:57]}
{[%emt 00:00:55]} 13. Bf2 {[%clk 00:30:10]} {[%emt 00:00:52]} fxg3 {[%clk
00:26:57]} {[%emt 00:03:31]} 14. Bxg3 {[%clk 00:30:31]} {[%emt 00:00:08]} Bh6
{[%clk 00:27:20]} {[%emt 00:00:08]} 15. b3 {[%clk 00:29:25]} {[%emt 00:01:37]}
g5 {[%clk 00:26:27]} {[%emt 00:01:22]} 16. c5 {[%clk 00:27:07]} {[%emt
00:02:48]} Nd7 {[%clk 00:26:20]} {[%emt 00:00:37]} 17. cxd6 {[%clk 00:27:07]}
{[%emt 00:00:29]} cxd6 {[%clk 00:26:46]} {[%emt 00:00:05]} 18. Nc4 {[%clk
00:26:55]} {[%emt 00:00:42]} Qc7 {[%clk 00:25:55]} {[%emt 00:01:20]} 19. Nb5
{[%clk 00:26:03]} {[%emt 00:01:22]} Qc5 {[%clk 00:26:00]} {[%emt 00:00:25]} 20.
Nbxd6 {[%clk 00:26:02]} {[%emt 00:00:31]} b5 {[%clk 00:26:12]} {[%emt
00:00:19]} 21. Nxc8 {[%clk 00:26:01]} {[%emt 00:00:31]} Raxc8 {[%clk 00:26:30]}
{[%emt 00:00:12]} 22. Nxe5 {[%clk 00:25:03]} {[%emt 00:01:28]} Qc3+ {[%clk
00:26:22]} {[%emt 00:00:38]} 23. Kf2 {[%clk 00:24:39]} {[%emt 00:00:54]} Qb2+
{[%clk 00:26:09]} {[%emt 00:00:42]} 24. Kg1 {[%clk 00:23:55]} {[%emt 00:01:16]}
Nxe5 {[%clk 00:23:45]} {[%emt 00:02:53]} 25. Bxe5 {[%clk 00:23:23]} {[%emt
00:01:02]} Qxe5 {[%clk 00:24:01]} {[%emt 00:00:14]} 26. d6 {[%clk 00:22:43]}
{[%emt 00:01:10]} Ng6 {[%clk 00:23:10]} {[%emt 00:01:20]} 27. d7 {[%clk
00:21:34]} {[%emt 00:01:40]} Rcd8 {[%clk 00:22:26]} {[%emt 00:01:14]} 28. Rc1
{[%clk 00:21:48]} {[%emt 00:00:16]} g4 {[%clk 00:21:55]} {[%emt 00:01:01]} 29.
Rc8 {[%clk 00:21:18]} {[%emt 00:01:00]} gxf3 {[%clk 00:21:47]} {[%emt
00:00:37]} 30. Qxf3 {[%clk 00:21:33]} {[%emt 00:00:15]} Qd4+ {[%clk 00:18:34]}
{[%emt 00:03:44]} 31. Kf1 {[%clk 00:16:46]} {[%emt 00:05:17]} Rxf3+ {[%clk
00:18:50]} {[%emt 00:00:14]} 32. Bxf3 {[%clk 00:17:07]} {[%emt 00:00:09]} Qxd7
{[%clk 00:19:07]} {[%emt 00:00:14]} 33. Bg4 {[%clk 00:14:05]} {[%emt 00:03:32]}
Qf7+ {[%clk 00:19:24]} {[%emt 00:00:12]} 34. Kg2 {[%clk 00:12:45]} {[%emt
00:01:50]} Rxc8 {[%clk 00:19:45]} {[%emt 00:00:09]} 35. Bxc8 {[%clk 00:12:59]}
{[%emt 00:00:16]} Nf4+ {[%clk 00:20:03]} {[%emt 00:00:11]} 36. Kg1 {[%clk
00:10:25]} {[%emt 00:03:05]} Qc7 {[%clk 00:20:09]} {[%emt 00:00:22]} 37. Bg4
{[%emt 00:00:19]} Qc1+ {[%clk 00:20:35]} {[%emt 00:00:01]} 38. Kh2 {[%clk
00:10:56]} {[%emt 00:00:15]} Qd2+ {[%clk 00:20:54]} {[%emt 00:00:11]} 0-1